Workbook

Sheet 計算
V1: 22 | W1: =V1+1 -> 23 | X1: 24 | Y1: 25 | Z1: 26 | AA1: 27 | AB1: 28 | AC1: 29 | AD1: 30 | AE1: 31 | AF1: 32 | AG1: 33
Q2: no of pass | R2: 2 | S2: 1pass=1: 2pass=2 : 4pass=3
A3: text(1) | B3: Vapor Rate (kg/h) | C3: 128874 | H3: text1 | I3: AT : cross sectinonal ａｒｅａ (m2) | L3: 9.621128562 | Q3: valve type | R3: 1 | S3: v1=1 : v4=2
A4: text(2) | B4: Liquid Rate (kg/h) | C4: 283056 | H4: text4 | I4: AD1: downcomer area (m2) | L4: 1.223604968 | Q4: active area | R4: 1 | S4: 自動=1 ：手動=2
A5: text(3) | B5: Vapor density (kg/m3) | C5: 62.2 | D5: text(16) | E5: No of valve per tray | F5: 504 | H5: text5 | I5: AD3 : downcomer area (m2) | L5: 2.454140328 | Q5: notched weir | R5: 2 | S5: 有り＝１ ：なし＝２
A6: text(4) | B6: Liuid density (kg/m3) | C6: 431.8 | D6: text(17) | E6: Valve hole ID (mm) | F6: 39 | H6: text6 | I6: AD5 : downcomer area (m2) | L6: 0 | Q6: MX | R6: 1 | S6: メカ手動入力=1：データﾍﾞｰｽ使用＝２
A7: text(5) | B7: Allowable max flood% | C7: 82 | E7: Rtio of light | H7: text7 | I7: AA : active area (m2) | L7: 4.719778299 | Q7: 計算モード | R7: 1 | S7: 設計=1：ｼﾐｭﾚｰｼｮﾝ=2
A8: text(6) | B8: System factor (-) | C8: 1 | D8: text(18) | E8: type valve (%) | F8: 50 | H8: text13 | I8: CAF | L8: 0.4142479441
H9: text12 | I9: VLOAD | L9: 8.337979914
A10: text(7) | B10: Column ID (mm) | C10: 3500 | H10: text14 | I10: FLOOD ( %) | L10: 70.79846019
A11: text(8) | B11: Tray spacing (mm) | C11: 700 | H11: text16 | I11: P.DROP-A (mmH2O) | L11: 68.25052875
A12: text(9) | B12: Weir height (mm) | C12: 40 | H12: text17 | I12: P.DROP-B (mmH2O) | L12: 64.68262684
A13: text(10) | B13: Downcomer clearance(mm) | C13: 90.3 | H13: text22 | I13: DC.backup-A (%) | L13: 40.69903518
A14: text(11) | B14: Tray thickness (mm) | C14: 2 | D14: text(19) | E14: Notch depth (mm) | F14: 0 | H14: text23 | I14: DC.backup-B (%) | L14: 39.45100139
D15: text(20) | E15: Notch pitch (mm) | F15: 0 | H15: text2 | I15: Under DC velocity-A (ft/s) | L15: 1.217426326
H16: text26 | I16: Under DC velocity-B (ft/s) | L16: 0.9650012496
H17: text25 | I17: Design Piont Weep Liuid -A (kg/h) | L17: 3046.168415
H18: text18 | I18: Design Piont Weep Liuid -B (kg/h) | L18: 2496.305703 | U18: % FLOOD | W18: 70.79846019 | X18: 18
H19: text24 | I19: 25% weep vapor load-A (%) | L19: 4.392578125 | U19: undew downcomer velocity －１ | V19: (ft/s) | W19: 0.9650012496 | X19: =X18+1 -> 19
A20: text(12) | B20: DC Width H1 (mm) | C20: 647 | I20: 25% weep vapor load-B (%) | L20: 非収束 | U20: undew downcomer velocity －２ | V20: (ft/s) | W20: 1.217426326 | X20: =X19+1 -> 20
A21: text(13) | B21: DC Width H3 (mm) | C21: 706 | I21: Unit referance (%) | L21: 63.01795974 | T21: 計 | U21: pess.drop dry-1 | V21: inch liq | W21: 3.326091164 | X21: 21
A22: text(14) | B22: DC width H5 (mm) | C22: 0 | D22: text(21) | E22: Active area (m2) | I22: Mini. Vaopr Load (kg/h) | L22: 30039.15208 | T22: 算 | U22: pess.drop dry-2 | V22: inch liq | W22: 3.326091164 | X22: 22
A23: text(15) | B23: Flow pass length (mm) | C23: 750 | E23: 手動計算時に入力 | F23: 0 | I23: Max. Vaopr Load (kg/h) | L23: 165297.0595 | T23: 結 | U23: pess.drop over weir-1 | V23: inch liq | W23: 2.266842349 | X23: 23
I24: Min. Liquid Load (kg/h) | L24: 36992.09314 | T24: 果 | U24: pess.drop over weir-2 | V24: inch liq | W24: 1.941532994 | X24: 24
I25: Max. Liquid Load (kg/h) | L25: 288303.5954 | U25: pess.drop tray-1 | V25: mmH2O | W25: 68.25052875 | X25: 25
I26: 注） -A , -B は偶数、奇数段を示す | U26: pess.drop tray-2 | V26: mmH2O | W26: 64.68262684 | X26: 26
U27: DC backup -1 | V27: (%) | W27: 40.69903518 | X27: 27
U28: DC backup -2 | V28: (%) | W28: 39.45100139 | X28: 28
U29: unit referance | V29: (%) | W29: 63.01795974 | X29: 29
U30: 25% weep vapor load-1 | V30: (%) | W30: 4.392578125 | X30: =X29+1 -> 30
U31: 25% weep vapor load-2 | V31: (%) | W31: 非収束 | X31: 31

Sheet 使用方法
A1: 使い方
A30: シートの説明
A31: シート”解説” | B31: トレーの構造、計算時の制約事項などが解説に記載されてます。 最初に読んで下さい。
A33: シート”精度” | B33: エンジニアリング会社の計算値と本計算ソフトを使用した場合の計算値を C-XXXXについて比較してあります。
B34: ほぼ同等な計算結果となっています。 ないのは ”ギャランティー” です。
A36: シート”記号表” | B36: Module マクロを見聞するときに役立つ記号表を記載しました。
A39: 使用方法
A40: データの入力 | B40: ピンクセルは、手動入力します。 Vapor/ Liquid Rate はPro-Ⅱ 等の蒸留シミュレーター の計算結果を用いる。
B41: 青のセルは、メカニカルデータで、手動入力とシート”DATA”からの転送がどちらも可能。
B42: Allowable Max Flood% 、System Factor は解説を参照。
A44: トレーメカデータ | B44: 水色セルに入力する。
A46: 計算の実行 | B46: 全てのデータを入力したら 計算実行 ボタンで実行できます。
A48: 計算結果 | B48: 計算結果が 緑のセルに表示されます。

Sheet 解説
A4: はじめに
B5: 本計算シートは、30年以上前の Glitsch社の”BALLAST TRAY DESIGN MANUAL（BULLETIN#4900）”に基づき作成されています。
B6: 2013年にMANUAL 第6版が開示されているが、変更点の確認はしていません。
B7: 25%Weeping や Notch Weir の計算は、推定方法による計算なので参考値程度に扱うこと。
B8: メーカーの計算値と精度比較は行っているが、あくまでユーザーの責任で計算結果を判断されたい。
B9: この計算シートは、マクロを使用しているので、マクロを有効で使用して下さい。
B10: マクロ（Module1）には、予期せぬ変更を防ぐためパスワードが設定されています。
A12: 用途
B13: この計算シートでは、塔径、トレースペースなどの設定されたデータで、どれだけの気液を処理できるかを計算するものです。
B14: プロダクトの性状は、別のプロセスシミュレーターで計算して下さい。
A16: 用語解説
A18: tray load
B19: Vapor rate trayに入ってくるvaporの量 (kg/h)
B20: liquid rate trayを出て行くliquidの量 (kg/h)
B21: vapor density trayに入るvaporの密度 (kg/m3)
B22: liquiddensity trayを出て行くliquidの密度(kg/m3)
B23: 上記の値は､ﾌﾟﾛｾｽｼﾐｭﾚｰﾀｰ又は､trayのﾃﾞｰﾀｼｰﾄにより求める。
B24: Vaporrate、Liquidrateをtowerへの供給量（ﾌｨｰﾄﾞ量）と間違えないこと｡
A26: allowable max flood％
B27: 許容される最大のfloog%である。
B28: 設計時には、加圧ｻｰﾋﾞｽ（常圧も含む）は 82%
B29: ﾊﾞｷｭｰﾑｻｰﾋﾞｽは77%
B30: 塔径910mm以下の場合は､ 75% を上限として設計する｡
B31: （ ADIP液の場合60～ 70% が指定されている。）
B32: towerへのfeed、reflux流量などが安定していれば実際は､82%以上の処理は､可能で
B33: あるが個別にﾕｰｻﾞｰの責任でトライすべき問題である｡
A35: system factor
B36: 処理する流体によってfoam（泡立ち）の傾向が異なる。これを補正するのが
B37: system factor（foam factorという呼び方もある）である。以下の値を標準値
B38: として使用する｡
B39: 泡立ちしない流体・通常の流体 1.00
B40: fluorine ex. BF3,freonなど 0.90
B41: 中程度のﾌｫｰﾐﾝｸﾞ流体 oil absorber,amine and glycolのregeneratorなど 0.85
B42: ﾌｫｰﾐﾝｸﾞ流体 amine and glycolのabsorbersなど 0.73
B43: （ ADIP液の場合0.71が指定されている。）
B44: ひどいﾌｫｰﾐﾝｸﾞ流体 ＭＥＫなど 0.60
B45: 連続的にﾌｫｰﾐﾝｸﾞ傾向の流体 caustic regenerator 0.3 ～0.6
A47: VALVEのﾀｲﾌﾟ
B48: V-1 ﾀｲﾌﾟ
B49: 最も一般的に使用されるﾀｲﾌﾟである｡何も指定しなければ、V1を使用する｡
B50: V-4 ﾀｲﾌﾟ
B51: V4 ﾄﾚｰのデッキがﾍﾞﾝﾁｭﾘｰになっていて、ﾊﾞｷｭｰﾑｻｰﾋﾞｽやﾄﾚｰの圧力損失を特に少なくする指定がある時使用する｡
B52: valve hole （ ﾊﾞﾙﾌﾞの取り付けられている穴の内径 ）は39mmである。
B53: Ｈ記号 ( V-1H V-4H )
B54: V-1、V-2のユニットに重りを付けて重くしたﾕﾆｯﾄ。全数の50%以上は使用しない｡
A56: Active area
B57: 通常はｔｏｗｅｒの断面積からﾀﾞｳﾝｶﾏｰの面積を引いたものがａｃｔｉｖｅareaとなり、自動計算される。
B58: 但し､trayにブランキングを実施した場合は､自動計算されたａｃｔｉｖｅareaから ﾌﾞﾗﾝｷﾝｸﾞした面積を引いて ａｃｔｉｖｅ ａｒｅａ とする必要があるので、この場合には､手動入力を選択する｡
A60: downcomer clearance
B61: 標準値は､ 40mmである。 （ 15mmが下限値 ）
A63: max underｄｏｗｎｃｏｍｅｒvelosity
B64: underＤＣ （downcomer） velosityの上限値は､ 1.24 ft/sである。
B65: 計算結果のA,Bは、２ｐａｓｓ ｔｒａｙ のH1 、H3における値である｡
B66: ４ｐａｓｓの Ｈ５ における値は､計算していない。
A68: ＤＣ ｂａｃｋｕｐ
B69: ＤＣ(downcomer) ｂａｃｋｕｐ とは、ﾀﾞｳｶﾏｰ内に液が何％溜まっているかを計算している｡
B70: ﾊﾞｯｸｱｯﾌﾟが高くなれば､運転不能となる｡ 許容上限値は､次の値である｡
B71: Dv ( vaporの密度kg/m3 ) 許容上限値（％）
B72: Dv ＜ １６ の時 ６０
C73: １６ ＜＝ Ｄｖ ＜ ４８ の時 ５０
C74: ４８ ＜＝ Ｄｖ の時 ４０
A76: unit referance
B77: ｖａｌｖｅがある瞬間に何％ 開いているかを示す値である。
B78: 良好なﾊﾟｰﾌｫｰﾏﾝｽを発揮するためには､最低下記の値が必要である。
B79: Ｎｏ ｏｆ ｐａｓｓ minimumｕｎｉｔ ｒｅｆｅｒａｎｃｅ (%)
B80: １ ３５以上
B81: ２ ５０以上
B82: ４ ６５以上
A84: Weeping
B85: 蒸留が効果的に行われるには、トレー上で蒸気と液が効果的に接触する必要がある。
B86: downcomer を経由しないで ｖａｌｖｅ hole から液が直接下のトレーに落下する現象が Weeping であり、
B87: Tray上の液の 25%が直接下のトレーに落下する状況が 25%weeping である。 設計時のtray効率は通常 70-80% 程度なので、
B88: 25% weeping以上の 液落下になると、トレー蒸留効率が低下し、所定の蒸留性状（品質）が得られなくなる。
B89: 一般に、25%weepingに至る Vapor rateは、運転ポイントに比べて相当小さいので、通常運転では問題にならない。
A92: トレーの構造と名称
D93: 1pass tray の構造
N96: A | P96: colume ID | Z96: mm
N97: B | P97: weir height | Z97: mm
N98: C | P98: downcomer width | V98: (H1) | Z98: mm
N99: D | P99: tray spacing | Z99: mm
N100: E | P100: downcomer clearance | Z100: mm
M113: FPL | P113: flow pass length | Z113: mm
S118: WL1 | U118: weir length | AA118: mm
G122: ２ pass tray の構造
S125: A | U125: colume ID | AC125: mm
S126: B | U126: weir height | AC126: mm
S127: H1 | U127: downcomer width | AC127: mm
S128: H3 | U128: downcomer width | AC128: mm
S129: D | U129: tray spacing | AC129: mm
S130: E | U130: downcomer clearance | AC130: mm
S139: H1 | U139: downcomer width | AC139: mm
S140: H3 | U140: downcomer width | AC140: mm
S141: FPL | V141: flow pass length | AC141: mm
S147: WL1 | U147: weir length | AC147: mm
S148: WL3 | U148: weir length | AC148: mm
G156: ４ pass tray の構造
Z160: A | AB160: colume ID | AJ160: mm
Z161: B | AB161: weir height | AJ161: mm
Z162: D | AB162: tray spacing | AJ162: mm
Z163: E | AB163: downcomer clearance | AJ163: mm
Z165: H1 | AB165: downcomer width | AJ165: mm
Z166: H3 | AB166: downcomer width | AJ166: mm
Z167: H5 | AB167: downcomer width | AJ167: mm
T181: FPL | W181: flow pass length | AD181: mm
B196: 液ロードが低い場合は、Tray上で液が均等に流れないので "切り欠き" を設置する場合がある。 これを Notched Weir と呼ぶ。
D197: notched weir

Sheet 精度
C1: 計算精度の表示
C2: C-XXXX #1-2 A mode
C3: Vapor Rate | D3: (kg/h) | E3: 128874 | F3: 128874
C4: Liquid Rate | D4: (kg/h) | E4: 283056 | F4: 283056
C5: Vapor Density | D5: (kg/m3) | E5: 62.2 | F5: 62.2
C6: Liquid Density | D6: (kg/m3) | E6: 431.8 | F6: 431.8
C7: Allowable Max.Flood% | D7: (%) | E7: 82 | F7: 82
B8: 入 | C8: Foam factor | D8: (-) | E8: 1 | F8: 1
B9: 力 | C9: Column ID | D9: (mm) | E9: 3500 | F9: 3500
B10: デ | C10: Tray Spacing | D10: (mm) | E10: 700 | F10: 700
B11: ｜ | C11: Tray thickness | D11: (mm) | E11: 2 | F11: 2
B12: タ | C12: No of Flow Path(1 or 2 ) | D12: (-) | E12: 2 | F12: 2
C13: h1 | D13: (mm) | E13: 647 | F13: 647
C14: h3 | D14: (mm) | E14: 706 | F14: 706 | J14: A | K14: B | L14: C
C15: h5 | D15: (mm) | E15: 0 | F15: 0 | H15: % FLOOD | J15: 70.9 | K15: 70.79846019 | L15: =K15/J15*100 -> 99.85678447
C16: Flow Pass Length | D16: (mm) | E16: 750 | F16: 750 | H16: under downcomer velocity －１ | I16: (ft/s) | J16: 0.96 | K16: 0.9650012496 | L16: 100.5209635
C17: Weir Height | D17: (mm) | E17: 40 | F17: 40 | H17: under downcomer velocity －２ | I17: (ft/s) | J17: 1.201 | K17: 1.217426326 | L17: 101.3677208
C18: Downcomer Clearance | D18: (mm) | E18: 90.3 | F18: 90.3 | G18: 計 | H18: pess.drop dry-1 | I18: inch liq | J18: 3.302 | K18: 3.326091164 | L18: 100.7295931
C19: Downcomer Max.Backup | D19: (%) | E19: 40 | F19: 40 | G19: 算 | H19: pess.drop dry-1 | I19: inch liq | J19: 3.302 | K19: 3.326091164 | L19: 100.7295931
C20: Downcomer Area Ratio | D20: (-) | E20: 1 | F20: 1 | G20: 結 | H20: pess.drop over weir-1 | I20: inch liq | J20: 2.267 | K20: 2.266842349 | L20: 99.99304582
C21: (bottom / top ) | G21: 果 | H21: pess.drop over weir-2 | I21: inch liq | J21: 1.941 | K21: 1.941532994 | L21: 100.0274598
C22: Valve Type (V1=1 , V4=2 ) | E22: V1 | F22: V1 | H22: pess.drop tray-1 | I22: mmH2O | J22: =5.001*13.6 -> 68.0136 | K22: 68.25052875 | L22: 100.348355
C23: Valve Hole ID | D23: (mm) | E23: 39 | F23: 39 | H23: pess.drop tray-2 | I23: mmH2O | J23: =4.738*13.6 -> 64.4368 | K23: 64.68262684 | L23: 100.3815007
C24: No of ValvePER TRAY | D24: (-) | E24: 504 | F24: 504 | H24: DC backup -1 | I24: (%) | J24: 41 | K24: 40.69903518 | L24: 99.26593946
C25: Ratio of light type valve (%) | D25: (-) | E25: 50 | F25: 50 | H25: DC backup -2 | I25: (%) | J25: 39.1 | K25: 39.45100139 | L25: 100.8977018
C26: Notched weir (yes=1 ,no=2) | E26: No | F26: No | H26: unit referance | I26: (%) | J26: 63.1 | K26: 63.01795974 | L26: 99.86998374
C27: Notch depth | D27: (mm) | E27: **** | F27: **** | H27: 25% weep vapor load-1 | I27: (%) | J27: 8.5 | K27: 4.392578125 | L27: 51.67738971
C28: Notch pitch | D28: (mm) | E28: **** | F28: **** | H28: 25% weep vapor load-2 | I28: (%) | J28: 8.3 | K28: 非収束 | L28: ***
C30: C-XXXX #1-2 B mode | J30: A | K30: B | L30: C
C31: Vapor Rate | D31: (kg/h) | E31: 55499 | F31: =E31 -> 55499 | H31: % FLOOD | J31: 31.6 | K31: 31.55859416 | L31: =K31/J31*100 -> 99.86896885
C32: Liquid Rate | D32: (kg/h) | E32: 137569 | F32: =E32 -> 137569 | H32: under downcomer velocity －１ | I32: (ft/s) | J32: 0.455 | K32: 0.4569397894 | L32: =K32/J32*100 -> 100.4263273
C33: Vapor Density | D33: (kg/m3) | E33: 62.63 | F33: =E33 -> 62.63 | H33: under downcomer velocity －２ | I33: (ft/s) | J33: 0.591 | K33: 0.5764661232 | L33: 97.54079918
C34: Liquid Density | D34: (kg/m3) | E34: 443.2 | F34: =E34 -> 443.2 | G34: 計 | H34: pess.drop dry-1 | I34: inch liq | J34: 2.987 | K34: 2.947517878 | L34: 98.67820148
G35: 算 | H35: pess.drop dry-1 | I35: inch liq | J35: 2.987 | K35: 2.947517878 | L35: 98.67820148
G36: 結 | H36: pess.drop over weir-1 | I36: inch liq | J36: 1.377 | K36: 1.377131414 | L36: 100.0095435
G37: 果 | H37: pess.drop over weir-2 | I37: inch liq | J37: 1.179 | K37: 1.179502438 | L37: 100.0426156
H38: pess.drop tray-1 | I38: mmH2O | J38: 56.24 | K38: 55.77498798 | L38: 99.17316497
H39: pess.drop tray-2 | I39: mmH2O | J39: 54.02 | K39: 53.55022327 | L39: 99.13036517
H40: DC backup -1 | I40: (%) | J40: 30.3 | K40: 30.0106904 | L40: =K40/J40*100 -> 99.04518284
H41: DC backup -2 | I41: (%) | J41: 29.8 | K41: 29.80139189 | L41: =K41/J41*100 -> 100.0046708
H42: unit referance | I42: (%) | J42: 27.1 | K42: 27.04507402 | L42: =K42/J42*100 -> 99.79732112
H43: 25% weep vapor load-1 | I43: (%) | J43: 19.3 | K43: 21.953125 | L43: =K43/J43*100 -> 113.7467617
H44: 25% weep vapor load-2 | I44: (%) | J44: 19 | K44: 20.3921875 | L44: =K44/J44*100 -> 107.3273026

Sheet SIM (hidden)

Sheet 記号表
A1: 記号表
B2: 記号 | C2: 内容 | D2: 単位 | E2: マクロでの変数
B3: AA | C3: Active area | D3: ｆｔ2 | E3: AAE
B4: AAM | C4: Minimum Active area | D4: ｆｔ2
B5: AD | C5: Downcomer area | D5: ｆｔ2 | E5: AD1E ,AD3E ,AD5E
B6: ADM | C6: Minimum Downcomer area | D6: ｆｔ2 | E6: ADM
B7: Ah | C7: Hole area | D7: ｆｔ2 | E7: HAA
B8: AT | C8: Column sectional area | D8: ｆｔ2 | E8: ATE
B9: ATM | C9: Minimum Column sectional area | D9: ｆｔ2
B10: CAF | C10: Capacity factor | E10: CAF
B11: CAF0 | C11: Capacity factor uncorrected by system factor | E11: CAF0
B12: CFS | C12: Vapor rate | D12: ft3/s | E12: WFGF
B13: DC | C13: Downcomer clearance | D13: inch | E13: DCCL
B14: DL | C14: Liquid density | D14: lb/ft3 | E14: DLE
B15: Dv | C15: Vapor density | D15: lb/ft3 | E15: DGE
B16: Dm | C16: Valve Metal density | D16: lb/ft3 | E16: DM
B17: DT | C17: Column diameter | D17: ft | E17: ID (m)
C18: System factor | E18: FF
B19: FPL | C19: flow path length | D19: inch | E19: FPLE
B20: Fs | C20: System factor | E20: FF
B21: GPM | C21: Liquid rate | D21: gpm | E21: WFLG
B22: Hdc | C22: Dowmcomer Backup | D22: inch | E22: HDCMA, HDCMB | F22: 偶数段、奇数段
B23: HN | C23: Depth of notch | D23: inch
B24: How | C24: liquid height over weir | D24: inch | E24: DP2A, DP2B | F24: 偶数段、奇数段
B25: How' | C25: liquid height over the bottom of a notch | D25: inch
B26: Hud | C26: Head loss under dowcomer | D26: inch liquid | E26: HUDA, HUDB | F26: 偶数段、奇数段
B27: Hw | C27: Outlet weir height | D27: inch | E27: HW
B28: Hwi | C28: Inlet weir height | D28: inch
B29: Li | C29: length of inlet weir | D29: inch | E29: Wl1, WL3, WL5
B30: Lwi | C30: length of outlet weir | D30: inch
B31: NP | C31: Number of liquid path | E31: NTPT
B32: △P | C32: Pressure drop through tray | D32: inch liquid | E32: DPTA, DPTB | F32: 偶数段、奇数段
B33: △Pdry | C33: Dry pressure drop through tray | D33: inch liquid | E33: PDRY
B34: VDdsg | C34: dowcomer design velocity | D34: GPM/ft2 | E34: VDDSG
B35: VDdsg* | C35: VDdsg uncorrected by system factor | D35: GPM/ft2
B36: VDC | C36: Downcomer volume | D36: ft3/s
B37: Vh | C37: vapor velocity through holes | D37: ft/s | E37: VH
B38: Vload | C38: Design vapor load | D38: ft3/s | E38: VLOAD
C39: CFS× （ Dv/(DL-Dv)）＾0.5
B40: WN | C40: Width of notch | D40: inch
B41: WFP | C41: Average flow path width | D41: inch

Sheet test (hidden)
B2: 1 | C2: 128874 | D2: 3.841645498 | E2: 3.516336144 | F2: 0.06848252894 | G2: 0.05612077346 | H2: 3046.168415 | I2: 2496.305703 | J2: 70764 | K2: 2496.305703 | L2: 27.34748962 | M2: 0.5 | N2: 386622 | O2: 128.874 | P2: 386622 | Q2: 128.874
B3: 2 | C3: 64501.437 | D3: 3.841645498 | E3: 3.516336144 | F3: 0.06848252894 | G3: 0.05612077346 | H3: 3046.168415 | I3: 2496.305703 | J3: 70764 | K3: 2496.305703 | L3: 27.34748962 | M3: 0.5 | N3: 128874 | O3: 64501.437 | P3: 128874 | Q3: 128.874
B4: 3 | C4: 32315.1555 | D4: 3.841645498 | E4: 3.516336144 | F4: 0.2435117375 | G4: 0.2170791196 | H4: 10831.63509 | I4: 9655.886951 | J4: 70764 | K4: 9655.886951 | L4: 6.328586215 | M4: 0.3227303695 | N4: 64501.437 | O4: 32315.1555 | P4: 64501.437 | Q4: 128.874
B5: 4 | C5: 16222.01475 | D5: 3.841645498 | E5: 3.516336144 | F5: 0.6786807928 | G5: 0.6138433642 | H5: 30188.37106 | I5: 27304.34019 | J5: 70764 | K5: 27304.34019 | L5: 1.591675884 | M5: 0.1620087149 | N5: 32315.1555 | O5: 16222.01475 | P5: 32315.1555 | Q5: 128.874
B6: 5 | C6: 8175.444375 | D6: 3.841645498 | E6: 3.516336144 | F6: 1.367854432 | G6: 1.239194536 | H6: 60843.47395 | I6: 55120.5587 | J6: 70764 | K6: 55120.5587 | L6: 0.2838041135 | M6: 0.0816478876 | N6: 16222.01475 | O6: 8175.444375 | P6: 16222.01475 | Q6: 128.874
B7: 6 | C7: 4152.159188 | D7: 3.841645498 | E7: 3.516336144 | F7: 1.663989839 | G7: 1.507841349 | H7: 74015.86024 | I7: 67070.22598 | J7: 70764 | K7: 67070.22598 | L7: 0.05507323052 | M7: 0.05 | N7: 8175.444375 | O7: 4152.159188 | P7: 8175.444375 | Q7: 128.874
B8: 7 | C8: 2140.516594 | D8: 3.841645498 | E8: 3.516336144 | F8: 1.663989839 | G8: 1.507841349 | H8: 74015.86024 | I8: 67070.22598 | J8: 70764 | K8: 67070.22598 | L8: 0.05507323052 | M8: 0.05 | N8: 4152.159188 | O8: 2140.516594 | P8: 4152.159188 | Q8: 128.874
B9: 8 | C9: 1134.695297 | D9: 3.841645498 | E9: 3.516336144 | F9: 1.663989839 | G9: 1.507841349 | H9: 74015.86024 | I9: 67070.22598 | J9: 70764 | K9: 67070.22598 | L9: 0.05507323052 | M9: 0.05 | N9: 2140.516594 | O9: 1134.695297 | P9: 2140.516594 | Q9: 128.874
B10: 9 | C10: 631.7846484 | D10: 3.841645498 | E10: 3.516336144 | F10: 1.663989839 | G10: 1.507841349 | H10: 74015.86024 | I10: 67070.22598 | J10: 70764 | K10: 67070.22598 | L10: 0.05507323052 | M10: 0.05 | N10: 1134.695297 | O10: 631.7846484 | P10: 1134.695297 | Q10: 128.874
B11: 10 | C11: 380.3293242 | D11: 3.841645498 | E11: 3.516336144 | F11: 1.663989839 | G11: 1.507841349 | H11: 74015.86024 | I11: 67070.22598 | J11: 70764 | K11: 67070.22598 | L11: 0.05507323052 | M11: 0.05 | N11: 631.7846484 | O11: 380.3293242 | P11: 631.7846484 | Q11: 128.874
B12: 11 | C12: 254.6016621 | D12: 3.841645498 | E12: 3.516336144 | F12: 1.663989839 | G12: 1.507841349 | H12: 74015.86024 | I12: 67070.22598 | J12: 70764 | K12: 67070.22598 | L12: 0.05507323052 | M12: 0.05 | N12: 380.3293242 | O12: 254.6016621 | P12: 380.3293242 | Q12: 128.874
B13: 12 | C13: 191.7378311 | D13: 3.841645498 | E13: 3.516336144 | F13: 1.663989839 | G13: 1.507841349 | H13: 74015.86024 | I13: 67070.22598 | J13: 70764 | K13: 67070.22598 | L13: 0.05507323052 | M13: 0.05 | N13: 254.6016621 | O13: 191.7378311 | P13: 254.6016621 | Q13: 128.874
B14: 13 | C14: 160.3059155 | D14: 3.841645498 | E14: 3.516336144 | F14: 1.663989839 | G14: 1.507841349 | H14: 74015.86024 | I14: 67070.22598 | J14: 70764 | K14: 67070.22598 | L14: 0.05507323052 | M14: 0.05 | N14: 191.7378311 | O14: 160.3059155 | P14: 191.7378311 | Q14: 128.874
B15: 14 | C15: 144.5899578 | D15: 3.841645498 | E15: 3.516336144 | F15: 1.663989839 | G15: 1.507841349 | H15: 74015.86024 | I15: 67070.22598 | J15: 70764 | K15: 67070.22598 | L15: 0.05507323052 | M15: 0.05 | N15: 160.3059155 | O15: 144.5899578 | P15: 160.3059155 | Q15: 128.874
B16: 15 | C16: 136.7319789 | D16: 3.841645498 | E16: 3.516336144 | F16: 1.663989839 | G16: 1.507841349 | H16: 74015.86024 | I16: 67070.22598 | J16: 70764 | K16: 67070.22598 | L16: 0.05507323052 | M16: 0.05 | N16: 144.5899578 | O16: 136.7319789 | P16: 144.5899578 | Q16: 128.874
B17: 16 | C17: 132.8029894 | D17: 3.841645498 | E17: 3.516336144 | F17: 1.663989839 | G17: 1.507841349 | H17: 74015.86024 | I17: 67070.22598 | J17: 70764 | K17: 67070.22598 | L17: 0.05507323052 | M17: 0.05 | N17: 136.7319789 | O17: 132.8029894 | P17: 136.7319789 | Q17: 128.874
B18: 17 | C18: 130.8384947 | D18: 3.841645498 | E18: 3.516336144 | F18: 1.663989839 | G18: 1.507841349 | H18: 74015.86024 | I18: 67070.22598 | J18: 70764 | K18: 67070.22598 | L18: 0.05507323052 | M18: 0.05 | N18: 132.8029894 | O18: 130.8384947 | P18: 132.8029894 | Q18: 128.874
B19: 18 | C19: 129.8562474 | D19: 3.841645498 | E19: 3.516336144 | F19: 1.663989839 | G19: 1.507841349 | H19: 74015.86024 | I19: 67070.22598 | J19: 70764 | K19: 67070.22598 | L19: 0.05507323052 | M19: 0.05 | N19: 130.8384947 | O19: 129.8562474 | P19: 130.8384947 | Q19: 128.874
B20: 19 | C20: 129.3651237 | D20: 3.841645498 | E20: 3.516336144 | F20: 1.663989839 | G20: 1.507841349 | H20: 74015.86024 | I20: 67070.22598 | J20: 70764 | K20: 67070.22598 | L20: 0.05507323052 | M20: 0.05 | N20: 129.8562474 | O20: 129.3651237 | P20: 129.8562474 | Q20: 128.874
B21: 20 | C21: 129.1195618 | D21: 3.841645498 | E21: 3.516336144 | F21: 1.663989839 | G21: 1.507841349 | H21: 74015.86024 | I21: 67070.22598 | J21: 70764 | K21: 67070.22598 | L21: 0.05507323052 | M21: 0.05 | N21: 129.3651237 | O21: 129.1195618 | P21: 129.3651237 | Q21: 128.874
B22: 21 | C22: 128.9967809 | D22: 3.841645498 | E22: 3.516336144 | F22: 1.663989839 | G22: 1.507841349 | H22: 74015.86024 | I22: 67070.22598 | J22: 70764 | K22: 67070.22598 | L22: 0.05507323052 | M22: 0.05 | N22: 129.1195618 | O22: 128.9967809 | P22: 129.1195618 | Q22: 128.874
B23: 22 | C23: 128.9353905 | D23: 3.841645498 | E23: 3.516336144 | F23: 1.663989839 | G23: 1.507841349 | H23: 74015.86024 | I23: 67070.22598 | J23: 70764 | K23: 67070.22598 | L23: 0.05507323052 | M23: 0.05 | N23: 128.9967809 | O23: 128.9353905 | P23: 128.9967809 | Q23: 128.874
B24: 23 | C24: 128.9046952 | D24: 3.841645498 | E24: 3.516336144 | F24: 1.663989839 | G24: 1.507841349 | H24: 74015.86024 | I24: 67070.22598 | J24: 70764 | K24: 67070.22598 | L24: 0.05507323052 | M24: 0.05 | N24: 128.9353905 | O24: 128.9046952 | P24: 128.9353905 | Q24: 128.874
B25: 24 | C25: 128.8893476 | D25: 3.841645498 | E25: 3.516336144 | F25: 1.663989839 | G25: 1.507841349 | H25: 74015.86024 | I25: 67070.22598 | J25: 70764 | K25: 67070.22598 | L25: 0.05507323052 | M25: 0.05 | N25: 128.9046952 | O25: 128.8893476 | P25: 128.9046952 | Q25: 128.874
B26: 25 | C26: 128.8816738 | D26: 3.841645498 | E26: 3.516336144 | F26: 1.663989839 | G26: 1.507841349 | H26: 74015.86024 | I26: 67070.22598 | J26: 70764 | K26: 67070.22598 | L26: 0.05507323052 | M26: 0.05 | N26: 128.8893476 | O26: 128.8816738 | P26: 128.8893476 | Q26: 128.874
B27: 26 | C27: 128.8778369 | D27: 3.841645498 | E27: 3.516336144 | F27: 1.663989839 | G27: 1.507841349 | H27: 74015.86024 | I27: 67070.22598 | J27: 70764 | K27: 67070.22598 | L27: 0.05507323052 | M27: 0.05 | N27: 128.8816738 | O27: 128.8778369 | P27: 128.8816738 | Q27: 128.874
B28: 27 | C28: 128.8759185 | D28: 3.841645498 | E28: 3.516336144 | F28: 1.663989839 | G28: 1.507841349 | H28: 74015.86024 | I28: 67070.22598 | J28: 70764 | K28: 67070.22598 | L28: 0.05507323052 | M28: 0.05 | N28: 128.8778369 | O28: 128.8759185 | P28: 128.8778369 | Q28: 128.874
B29: 28 | C29: 128.8749592 | D29: 3.841645498 | E29: 3.516336144 | F29: 1.663989839 | G29: 1.507841349 | H29: 74015.86024 | I29: 67070.22598 | J29: 70764 | K29: 67070.22598 | L29: 0.05507323052 | M29: 0.05 | N29: 128.8759185 | O29: 128.8749592 | P29: 128.8759185 | Q29: 128.874
B30: 29 | C30: 128.8744796 | D30: 3.841645498 | E30: 3.516336144 | F30: 1.663989839 | G30: 1.507841349 | H30: 74015.86024 | I30: 67070.22598 | J30: 70764 | K30: 67070.22598 | L30: 0.05507323052 | M30: 0.05 | N30: 128.8749592 | O30: 128.8744796 | P30: 128.8749592 | Q30: 128.874
B31: 30 | C31: 128.8742398 | D31: 3.841645498 | E31: 3.516336144 | F31: 1.663989839 | G31: 1.507841349 | H31: 74015.86024 | I31: 67070.22598 | J31: 70764 | K31: 67070.22598 | L31: 0.05507323052 | M31: 0.05 | N31: 128.8744796 | O31: 128.8742398 | P31: 128.8744796 | Q31: 128.874
B32: 31 | C32: 128.8741199 | D32: 3.841645498 | E32: 3.516336144 | F32: 1.663989839 | G32: 1.507841349 | H32: 74015.86024 | I32: 67070.22598 | J32: 70764 | K32: 67070.22598 | L32: 0.05507323052 | M32: 0.05 | N32: 128.8742398 | O32: 128.8741199 | P32: 128.8742398 | Q32: 128.874
B33: 32 | C33: 128.87406 | D33: 3.841645498 | E33: 3.516336144 | F33: 1.663989839 | G33: 1.507841349 | H33: 74015.86024 | I33: 67070.22598 | J33: 70764 | K33: 67070.22598 | L33: 0.05507323052 | M33: 0.05 | N33: 128.8741199 | O33: 128.87406 | P33: 128.8741199 | Q33: 128.874
B34: 33 | C34: 128.87403 | D34: 3.841645498 | E34: 3.516336144 | F34: 1.663989839 | G34: 1.507841349 | H34: 74015.86024 | I34: 67070.22598 | J34: 70764 | K34: 67070.22598 | L34: 0.05507323052 | M34: 0.05 | N34: 128.87406 | O34: 128.87403 | P34: 128.87406 | Q34: 128.874
B35: 34 | C35: 128.874015 | D35: 3.841645498 | E35: 3.516336144 | F35: 1.663989839 | G35: 1.507841349 | H35: 74015.86024 | I35: 67070.22598 | J35: 70764 | K35: 67070.22598 | L35: 0.05507323052 | M35: 0.05 | N35: 128.87403 | O35: 128.874015 | P35: 128.87403 | Q35: 128.874
B36: 35 | C36: 128.8740075 | D36: 3.841645498 | E36: 3.516336144 | F36: 1.663989839 | G36: 1.507841349 | H36: 74015.86024 | I36: 67070.22598 | J36: 70764 | K36: 67070.22598 | L36: 0.05507323052 | M36: 0.05 | N36: 128.874015 | O36: 128.8740075 | P36: 128.874015 | Q36: 128.874
B37: 36 | C37: 128.8740037 | D37: 3.841645498 | E37: 3.516336144 | F37: 1.663989839 | G37: 1.507841349 | H37: 74015.86024 | I37: 67070.22598 | J37: 70764 | K37: 67070.22598 | L37: 0.05507323052 | M37: 0.05 | N37: 128.8740075 | O37: 128.8740037 | P37: 128.8740075 | Q37: 128.874
B38: 37 | C38: 128.8740019 | D38: 3.841645498 | E38: 3.516336144 | F38: 1.663989839 | G38: 1.507841349 | H38: 74015.86024 | I38: 67070.22598 | J38: 70764 | K38: 67070.22598 | L38: 0.05507323052 | M38: 0.05 | N38: 128.8740037 | O38: 128.8740019 | P38: 128.8740037 | Q38: 128.874
B39: 38 | C39: 128.8740009 | D39: 3.841645498 | E39: 3.516336144 | F39: 1.663989839 | G39: 1.507841349 | H39: 74015.86024 | I39: 67070.22598 | J39: 70764 | K39: 67070.22598 | L39: 0.05507323052 | M39: 0.05 | N39: 128.8740019 | O39: 128.8740009 | P39: 128.8740019 | Q39: 128.874
B40: 39 | C40: 128.8740005 | D40: 3.841645498 | E40: 3.516336144 | F40: 1.663989839 | G40: 1.507841349 | H40: 74015.86024 | I40: 67070.22598 | J40: 70764 | K40: 67070.22598 | L40: 0.05507323052 | M40: 0.05 | N40: 128.8740009 | O40: 128.8740005 | P40: 128.8740009 | Q40: 128.874
B41: 40 | C41: 128.8740002 | D41: 3.841645498 | E41: 3.516336144 | F41: 1.663989839 | G41: 1.507841349 | H41: 74015.86024 | I41: 67070.22598 | J41: 70764 | K41: 67070.22598 | L41: 0.05507323052 | M41: 0.05 | N41: 128.8740005 | O41: 128.8740002 | P41: 128.8740005 | Q41: 128.874
B42: 41 | C42: 128.8740001 | D42: 3.841645498 | E42: 3.516336144 | F42: 1.663989839 | G42: 1.507841349 | H42: 74015.86024 | I42: 67070.22598 | J42: 70764 | K42: 67070.22598 | L42: 0.05507323052 | M42: 0.05 | N42: 128.8740002 | O42: 128.8740001 | P42: 128.8740002 | Q42: 128.874
B43: 42 | C43: 128.8740001 | D43: 3.841645498 | E43: 3.516336144 | F43: 1.663989839 | G43: 1.507841349 | H43: 74015.86024 | I43: 67070.22598 | J43: 70764 | K43: 67070.22598 | L43: 0.05507323052 | M43: 0.05 | N43: 128.8740001 | O43: 128.8740001 | P43: 128.8740001 | Q43: 128.874
B44: 43 | C44: 128.874 | D44: 3.841645498 | E44: 3.516336144 | F44: 1.663989839 | G44: 1.507841349 | H44: 74015.86024 | I44: 67070.22598 | J44: 70764 | K44: 67070.22598 | L44: 0.05507323052 | M44: 0.05 | N44: 128.8740001 | O44: 128.874 | P44: 128.8740001 | Q44: 128.874
B45: 44 | C45: 128.874 | D45: 3.841645498 | E45: 3.516336144 | F45: 1.663989839 | G45: 1.507841349 | H45: 74015.86024 | I45: 67070.22598 | J45: 70764 | K45: 67070.22598 | L45: 0.05507323052 | M45: 0.05 | N45: 128.874 | O45: 128.874 | P45: 128.874 | Q45: 128.874
B46: 45 | C46: 128.874 | D46: 3.841645498 | E46: 3.516336144 | F46: 1.663989839 | G46: 1.507841349 | H46: 74015.86024 | I46: 67070.22598 | J46: 70764 | K46: 67070.22598 | L46: 0.05507323052 | M46: 0.05 | N46: 128.874 | O46: 128.874 | P46: 128.874 | Q46: 128.874

Sheet weep data (hidden)
C1: 2014.08 | D1: Weeping 計算を下記データで計算するよう修正
A2: weeping | B2: Y | C2: X | D2: Z | E2: Y
B3: leak | C3: head | D3: Vload/AH | E3: leak
A4: V-1 | B4: GPM | C4: inch liq | E4: GPM
B5: 0.29 | C5: 1 | D5: 0.05 | E5: 0.29
B6: 0.79 | C6: 2 | D6: 0.05 | E6: 0.79
B7: 1.27 | C7: 3 | D7: 0.05 | E7: 1.27
B8: 1.73 | C8: 4 | D8: 0.05 | E8: 1.73
B9: 0.12 | C9: 1 | D9: 0.15 | E9: 0.12
B10: 0.34 | C10: 2 | D10: 0.15 | E10: 0.34
B11: 0.55 | C11: 3 | D11: 0.15 | E11: 0.55
B12: 0.76 | C12: 4 | D12: 0.15 | E12: 0.76
B13: 0.03 | C13: 1 | D13: 0.25 | E13: 0.03
B14: 0.14 | C14: 2 | D14: 0.25 | E14: 0.14
B15: 0.23 | C15: 3 | D15: 0.25 | E15: 0.23
B16: 0.33 | C16: 4 | D16: 0.25 | E16: 0.33
B17: -0.04 | C17: 1 | D17: 0.5 | E17: -0.04
B18: 0 | C18: 2 | D18: 0.5 | E18: 0
B19: 0.035 | C19: 3 | D19: 0.5 | E19: 0.035
B20: 0.075 | C20: 4 | D20: 0.5 | E20: 0.075
A23: weeping | B23: Y | C23: X | D23: Z | E23: Y
B24: leak | C24: head | D24: Vload/AH | E24: leak
A25: V-4 | B25: GPM | C25: inch liq | E25: GPM
B26: 0.18 | C26: 1 | D26: 0.1 | E26: =B26 -> 0.18
B27: 0.64 | C27: 2 | D27: 0.1 | E27: =B27 -> 0.64
B28: 1.11 | C28: 3 | D28: 0.1 | E28: 1.11
B29: 1.59 | C29: 4 | D29: 0.1 | E29: 1.59
B30: 0.11 | C30: 1 | D30: 0.3 | E30: 0.11
B31: 0.38 | C31: 2 | D31: 0.3 | E31: 0.38
B32: 0.67 | C32: 3 | D32: 0.3 | E32: 0.67
B33: 0.96 | C33: 4 | D33: 0.3 | E33: 0.96
B34: 0.06 | C34: 1 | D34: 0.4 | E34: 0.06
B35: 0.26 | C35: 2 | D35: 0.4 | E35: 0.26
B36: 0.47 | C36: 3 | D36: 0.4 | E36: 0.47
B37: 0.68 | C37: 4 | D37: 0.4 | E37: 0.68
B38: 0.02 | C38: 1 | D38: 0.6 | E38: 0.02
B39: 0.15 | C39: 2 | D39: 0.6 | E39: 0.15
B40: 0.27 | C40: 3 | D40: 0.6 | E40: 0.27
B41: 0.39 | C41: 4 | D41: 0.6 | E41: 0.39

Sheet %Flood詳細解説
B1: ％Floodの詳細解説
B3: ％Flood は以下の式で計算される。
C4: Vload | D4: Design vapor load | E4: ft3/s | F4: 下記の計算式による
C5: GPM | D5: Liquid rate | E5: gpm | F5: 液Load
C6: FPL | D6: flow path length | E6: inch | F6: シート”解説” の トレーの構造と名称 を参照
C7: AA | D7: Active area | E7: ｆｔ2 | F7: シート”解説” の Active area を参照
B8: CAFo はTS とVapor密度の関数で 下記のグラフを読み取る。マクロでは自動計算される | C8: CAF0 | D8: Capacity factor uncorrected by system factor
B9: TS: tray spacing が大きいと CAFo が大きくなるので ％Flood は小さくなる。 | D9: System factor
B10: （感覚的に理解できる 。）
C11: Vload | D11: Design vapor load | E11: ft3/s
D12: 計算式：CFS× （ Dv/(DL-Dv)）＾0.5
C13: CFS | D13: Vapor rate | E13: ft3/s
C14: DL | D14: Liquid density | E14: lb/ft3
C15: Dv | D15: Vapor density | E15: lb/ft3
B35: 液Load （GPM） 、Vapor load （Vload) が大きくなれば %Flood は大きくなる。
B37: %FLOOD の定義は式（13） の通りである。 100%まで運転きるかというとそうではなく、GLITCH社は 式（13） の％FLOODを計算して、過圧（常圧を含む）の塔なら 通常の運転上限を82%、塔径が小さい場合や、バキューム塔の場合は 82%より小さい値を上限にする と定義している。
B38: 全てのTray で 液、ガスの流量が脈動せず一定で、Foaming も起きないなら、 式(13)で 100% Flood まで 運転できるものと推測されるが、こんな運転はあり得ないし、ライセンサーも保証は出来ないので、設計点の液ガス 負荷 で 82% Flood を保障上限としているようである。 設計点ベースの ２０%増しで 安定して運転したいのなら 、％Flood は 82/1.2＝68％ で 設計することになる。
B39: %Flood 82 以上は、 上手く運転すれば運転できる可能性の領域であり、常時必ず運転できる範囲ではないので、テストランで短時間運転出来たからといって、常時其の運転を継続することには、危険が伴なうことを認識すべきである。
B40: ADIP溶液の場合は system facotor ＝ 0.71 が指定されているので、同じ液、ガスロードでも、式(13)の %Flood は大きくなる。 溶液ごとに 指定された system factor を用いて 式(13) の%Floodを計算して、運転の上限値は、 82％ と定義される。 ADIP溶液の場合 0.82*0.71 ＝0.58 なので ％Floodの 上限値は 58% という表現は 誤りである。

Sheet Sheet1
